[Event "Titled Tuesday Blitz December 13 Early 2022"]
[White "Aloma Vidal, Robert"]
[Black "Muminova, Nafisa"]
[WhiteFideId "2260409"]
[BlackFideId "14201526"]
[WhiteElo "2435"]
[BlackElo "2258"]
[Result "1-0"]
[Round "01"]
[TimeControl "180+1"]
[Date "2022.12.14"]
[WhiteClock "0:00:06"]
[BlackClock "0:00:01"]

1. e4 {[%clk 0:02:59]}  e6 {[%clk 0:02:58]} 2. d4 {[%clk 0:02:59]}  d5 {[%clk 0:02:58]} 3. e5 {[%clk 0:03:00]}  c5 {[%clk 0:02:58]} 4. c3 {[%clk 0:03:01]}  Nc6 {[%clk 0:02:58]} 5. Nf3 {[%clk 0:02:55]}  Qb6 {[%clk 0:02:58]} 6. a3 {[%clk 0:02:53]}  f6 {[%clk 0:02:56]} 7. b4 {[%clk 0:02:42]}  fxe5 {[%clk 0:02:55]} 8. dxe5 {[%clk 0:02:31]}  Qc7 {[%clk 0:02:55]} 9. Bf4 {[%clk 0:02:14]}  Nge7 {[%clk 0:02:52]} 10. Bd3 {[%clk 0:02:14]}  g6 {[%clk 0:02:49]} 11. O-O {[%clk 0:02:12]}  Bg7 {[%clk 0:02:49]} 12. Qe2 {[%clk 0:02:05]}  O-O {[%clk 0:02:48]} 13. Bg3 {[%clk 0:02:05]}  Nf5 {[%clk 0:02:45]} 14. Re1 {[%clk 0:02:04]}  Nxg3 {[%clk 0:02:41]} 15. hxg3 {[%clk 0:02:04]}  b6 {[%clk 0:02:17]} 16. Nbd2 {[%clk 0:02:04]}  a5 {[%clk 0:02:09]} 17. bxc5 {[%clk 0:01:59]}  bxc5 {[%clk 0:02:08]} 18. c4 {[%clk 0:01:59]}  d4 {[%clk 0:02:04]} 19. Rab1 {[%clk 0:01:57]}  Bb7 {[%clk 0:01:44]} 20. Rb5 {[%clk 0:01:43]}  Ne7 {[%clk 0:01:42]} 21. Ne4 {[%clk 0:01:43]}  Bxe4 {[%clk 0:01:39]} 22. Bxe4 {[%clk 0:01:44]}  Rab8 {[%clk 0:01:33]} 23. Reb1 {[%clk 0:01:44]}  Bxe5 {[%clk 0:01:20]} 24. Rb7 {[%clk 0:01:39]}  Qd6 {[%clk 0:01:17]} 25. Rxe7 {[%clk 0:01:27]}  Qxe7 {[%clk 0:00:57]} 26. Nxe5 {[%clk 0:01:25]}  Qc7 {[%clk 0:00:43]} 27. Rxb8 {[%clk 0:01:14]}  Rxb8 {[%clk 0:00:41]} 28. Nd3 {[%clk 0:01:09]}  Rb3 {[%clk 0:00:38]} 29. Qg4 {[%clk 0:01:03]}  Kf7 {[%clk 0:00:26]} 30. a4 {[%clk 0:00:52]}  Rc3 {[%clk 0:00:24]} 31. Qg5 {[%clk 0:00:35]}  Kg7 {[%clk 0:00:17]} 32. Nxc5 {[%clk 0:00:33]}  Qd6 {[%clk 0:00:12]} 33. Bd3 {[%clk 0:00:23]}  h6 {[%clk 0:00:10]} 34. Qxg6+ {[%clk 0:00:15]}  Kf8 {[%clk 0:00:10]} 35. Nxe6+ {[%clk 0:00:15]}  Ke7 {[%clk 0:00:10]} 36. Bf5 {[%clk 0:00:14]}  Rc1+ {[%clk 0:00:09]} 37. Kh2 {[%clk 0:00:14]}  Qe5 {[%clk 0:00:08]} 38. Nf4 {[%clk 0:00:12]}  Re1 {[%clk 0:00:05]} 39. Nd5+ {[%clk 0:00:11]}  Kf8 {[%clk 0:00:02]} 40. Qxh6+ {[%clk 0:00:06]}  Ke8 {[%clk 0:00:02]} 41. Bg6+ {[%clk 0:00:06]}  Kd7 {[%clk 0:00:01]} 42. Qh7+ {[%clk 0:00:06]} 1-0


[Site "https://www.chess.com"]

[Event "Titled Tuesday Blitz December 13 Early 2022"]
[White "Araujo Sanchez, Josue"]
[Black "Vianello, Enrico"]
[WhiteFideId "6416896"]
[BlackFideId "810738"]
[WhiteElo "2370"]
[BlackElo "2106"]
[Result "1-0"]
[Round "01"]
[TimeControl "180+1"]
[Date "2022.12.14"]
[WhiteClock "0:01:10"]
[BlackClock "0:00:41"]

1. c4 {[%clk 0:02:47]}  Nf6 {[%clk 0:02:58]} 2. Nc3 {[%clk 0:02:44]}  e6 {[%clk 0:02:55]} 3. d4 {[%clk 0:02:33]}  Bb4 {[%clk 0:02:51]} 4. Bd2 {[%clk 0:02:33]}  O-O {[%clk 0:02:50]} 5. e3 {[%clk 0:02:33]}  d5 {[%clk 0:02:49]} 6. cxd5 {[%clk 0:02:33]}  exd5 {[%clk 0:02:48]} 7. Bd3 {[%clk 0:02:33]}  c6 {[%clk 0:02:48]} 8. Nge2 {[%clk 0:02:33]}  Re8 {[%clk 0:02:47]} 9. O-O {[%clk 0:02:33]}  Nbd7 {[%clk 0:02:43]} 10. h3 {[%clk 0:02:32]}  Nf8 {[%clk 0:02:43]} 11. f3 {[%clk 0:02:29]}  Bd6 {[%clk 0:02:38]} 12. e4 {[%clk 0:02:28]}  dxe4 {[%clk 0:02:26]} 13. fxe4 {[%clk 0:02:28]}  Be7 {[%clk 0:02:25]} 14. Qc2 {[%clk 0:02:16]}  b6 {[%clk 0:02:02]} 15. e5 {[%clk 0:02:14]}  Nd5 {[%clk 0:02:01]} 16. Nxd5 {[%clk 0:02:14]}  cxd5 {[%clk 0:02:00]} 17. Nf4 {[%clk 0:02:11]}  Bb7 {[%clk 0:01:52]} 18. Bb5 {[%clk 0:02:11]}  Rc8 {[%clk 0:01:49]} 19. Qa4 {[%clk 0:02:10]}  Rc4 {[%clk 0:01:36]} 20. Bxc4 {[%clk 0:01:55]}  dxc4 {[%clk 0:01:37]} 21. Qxc4 {[%clk 0:01:54]}  Qd7 {[%clk 0:01:24]} 22. Bc3 {[%clk 0:01:50]}  Rc8 {[%clk 0:01:21]} 23. Qb3 {[%clk 0:01:45]}  Bd8 {[%clk 0:01:17]} 24. d5 {[%clk 0:01:41]}  Qe7 {[%clk 0:01:10]} 25. Rae1 {[%clk 0:01:33]}  Qg5 {[%clk 0:01:10]} 26. Rf2 {[%clk 0:01:30]}  b5 {[%clk 0:01:04]} 27. Bd4 {[%clk 0:01:29]}  a6 {[%clk 0:01:03]} 28. Qe3 {[%clk 0:01:21]}  Rc4 {[%clk 0:01:00]} 29. b3 {[%clk 0:01:20]}  Rc8 {[%clk 0:00:59]} 30. e6 {[%clk 0:01:15]}  fxe6 {[%clk 0:00:57]} 31. Nxe6 {[%clk 0:01:14]}  Qxe3 {[%clk 0:00:54]} 32. Rxe3 {[%clk 0:01:15]}  Be7 {[%clk 0:00:51]} 33. Nxg7 {[%clk 0:01:12]}  Ng6 {[%clk 0:00:47]} 34. Nf5 {[%clk 0:01:12]}  Bg5 {[%clk 0:00:46]} 35. Rg3 {[%clk 0:01:11]}  Bh6 {[%clk 0:00:41]} 36. Nxh6# {[%clk 0:01:10]} 1-0


[Site "https://www.chess.com"]

[Event "Titled Tuesday Blitz December 13 Early 2022"]
[White "Arbunic Castro, Giovanna"]
[Black "Manukyan, Sargis A."]
[WhiteFideId "3400549"]
[BlackFideId "13303970"]
[WhiteElo "1936"]
[BlackElo "2187"]
[Result "0-1"]
[Round "01"]
[TimeControl "180+1"]
[Date "2022.12.14"]
[WhiteClock "0:00:01"]
[BlackClock "0:00:35"]

1. e4 {[%clk 0:02:54]}  e6 {[%clk 0:02:59]} 2. d4 {[%clk 0:02:52]}  d5 {[%clk 0:02:58]} 3. exd5 {[%clk 0:02:52]}  exd5 {[%clk 0:02:58]} 4. Nf3 {[%clk 0:02:52]}  Bd6 {[%clk 0:02:57]} 5. c4 {[%clk 0:02:51]}  Nf6 {[%clk 0:02:55]} 6. Bg5 {[%clk 0:02:48]}  h6 {[%clk 0:02:54]} 7. Bh4 {[%clk 0:02:46]}  O-O {[%clk 0:02:50]} 8. Be2 {[%clk 0:02:45]}  dxc4 {[%clk 0:02:48]} 9. O-O {[%clk 0:02:43]}  Be6 {[%clk 0:02:43]} 10. Nc3 {[%clk 0:02:39]}  c6 {[%clk 0:02:39]} 11. Ne5 {[%clk 0:02:27]}  Bxe5 {[%clk 0:02:17]} 12. dxe5 {[%clk 0:02:23]}  Qxd1 {[%clk 0:02:18]} 13. Rfxd1 {[%clk 0:02:21]}  Nd5 {[%clk 0:02:18]} 14. Ne4 {[%clk 0:02:18]}  Nd7 {[%clk 0:01:50]} 15. Bg3 {[%clk 0:02:00]}  b5 {[%clk 0:01:41]} 16. Nd6 {[%clk 0:01:46]}  a5 {[%clk 0:01:36]} 17. f4 {[%clk 0:01:44]}  g6 {[%clk 0:01:31]} 18. Bf3 {[%clk 0:01:21]}  a4 {[%clk 0:01:28]} 19. Be4 {[%clk 0:00:56]}  Nc5 {[%clk 0:01:26]} 20. f5 {[%clk 0:00:33]}  Nxe4 {[%clk 0:01:08]} 21. fxe6 {[%clk 0:00:30]}  Nxd6 {[%clk 0:01:08]} 22. exd6 {[%clk 0:00:27]}  fxe6 {[%clk 0:01:07]} 23. Rf1 {[%clk 0:00:22]}  Rf5 {[%clk 0:00:58]} 24. Rxf5 {[%clk 0:00:18]}  gxf5 {[%clk 0:00:58]} 25. Re1 {[%clk 0:00:18]}  Kf7 {[%clk 0:00:57]} 26. Be5 {[%clk 0:00:14]}  a3 {[%clk 0:00:52]} 27. bxa3 {[%clk 0:00:11]}  Rxa3 {[%clk 0:00:52]} 28. g4 {[%clk 0:00:07]}  f4 {[%clk 0:00:48]} 29. Rf1 {[%clk 0:00:05]}  f3 {[%clk 0:00:48]} 30. d7 {[%clk 0:00:01]}  Ra8 {[%clk 0:00:35]} 0-1


[Site "https://www.chess.com"]

[Event "Titled Tuesday Blitz December 13 Early 2022"]
[White "Begunov, Konstantin"]
[Black "Dong, Bao Nghia"]
[WhiteFideId "4118510"]
[BlackFideId "12400343"]
[WhiteElo "2141"]
[BlackElo "2305"]
[Result "1-0"]
[Round "01"]
[TimeControl "180+1"]
[Date "2022.12.14"]
[WhiteClock "0:00:55"]
[BlackClock "0:01:36"]

1. d4 {[%clk 0:03:00]}  Nf6 {[%clk 0:02:51]} 2. c4 {[%clk 0:02:59]}  d6 {[%clk 0:02:52]} 3. Nc3 {[%clk 0:02:58]}  g6 {[%clk 0:02:52]} 4. e4 {[%clk 0:02:58]}  Bg7 {[%clk 0:02:53]} 5. f3 {[%clk 0:02:58]}  O-O {[%clk 0:02:54]} 6. Be3 {[%clk 0:02:58]}  e5 {[%clk 0:02:55]} 7. Nge2 {[%clk 0:02:58]}  Nc6 {[%clk 0:02:53]} 8. Qd2 {[%clk 0:02:58]}  exd4 {[%clk 0:02:53]} 9. Nxd4 {[%clk 0:02:59]}  Nxd4 {[%clk 0:02:53]} 10. Bxd4 {[%clk 0:03:00]}  a6 {[%clk 0:02:51]} 11. Be2 {[%clk 0:03:00]}  b6 {[%clk 0:02:51]} 12. O-O {[%clk 0:02:58]}  Bb7 {[%clk 0:02:51]} 13. Rac1 {[%clk 0:02:57]}  Re8 {[%clk 0:02:49]} 14. Rc2 {[%clk 0:02:44]}  Qe7 {[%clk 0:02:48]} 15. Rfc1 {[%clk 0:02:41]}  c5 {[%clk 0:02:44]} 16. Bf2 {[%clk 0:02:31]}  Rad8 {[%clk 0:02:44]} 17. Bf1 {[%clk 0:02:29]}  h5 {[%clk 0:02:36]} 18. Re1 {[%clk 0:02:25]}  Kh7 {[%clk 0:02:35]} 19. Bh4 {[%clk 0:02:20]}  Qe5 {[%clk 0:02:34]} 20. Kh1 {[%clk 0:02:12]}  Bh6 {[%clk 0:02:32]} 21. Qf2 {[%clk 0:02:11]}  g5 {[%clk 0:02:31]} 22. Bg3 {[%clk 0:02:11]}  Qe6 {[%clk 0:02:31]} 23. Qe2 {[%clk 0:02:02]}  h4 {[%clk 0:02:30]} 24. Bf2 {[%clk 0:02:02]}  Nh5 {[%clk 0:02:30]} 25. Nd5 {[%clk 0:01:56]}  Bxd5 {[%clk 0:02:28]} 26. exd5 {[%clk 0:01:56]}  Qg6 {[%clk 0:02:22]} 27. Qd3 {[%clk 0:01:52]}  Rxe1 {[%clk 0:02:20]} 28. Qxg6+ {[%clk 0:01:52]}  Kxg6 {[%clk 0:02:20]} 29. Bxe1 {[%clk 0:01:52]}  Re8 {[%clk 0:02:20]} 30. Bd3+ {[%clk 0:01:51]}  f5 {[%clk 0:02:19]} 31. Re2 {[%clk 0:01:52]}  Rxe2 {[%clk 0:02:19]} 32. Bxe2 {[%clk 0:01:52]}  Nf4 {[%clk 0:02:19]} 33. Bf1 {[%clk 0:01:53]}  Bg7 {[%clk 0:02:19]} 34. b3 {[%clk 0:01:50]}  Bd4 {[%clk 0:02:12]} 35. b4 {[%clk 0:01:42]}  Kf6 {[%clk 0:02:11]} 36. a4 {[%clk 0:01:37]}  cxb4 {[%clk 0:02:10]} 37. Bxb4 {[%clk 0:01:36]}  Ke5 {[%clk 0:02:10]} 38. g3 {[%clk 0:01:33]}  hxg3 {[%clk 0:02:09]} 39. hxg3 {[%clk 0:01:34]}  Nh5 {[%clk 0:02:07]} 40. Kg2 {[%clk 0:01:33]}  f4 {[%clk 0:02:07]} 41. g4 {[%clk 0:01:29]}  Nf6 {[%clk 0:02:07]} 42. Bd3 {[%clk 0:01:26]}  a5 {[%clk 0:02:03]} 43. Ba3 {[%clk 0:01:25]}  Bc3 {[%clk 0:02:03]} 44. Kf1 {[%clk 0:01:23]}  Nd7 {[%clk 0:01:55]} 45. Ke2 {[%clk 0:01:20]}  Nb8 {[%clk 0:01:55]} 46. Bh7 {[%clk 0:01:12]}  Na6 {[%clk 0:01:53]} 47. Kd3 {[%clk 0:01:11]}  Ba1 {[%clk 0:01:53]} 48. Bg6 {[%clk 0:01:10]}  Nc7 {[%clk 0:01:47]} 49. Bc1 {[%clk 0:01:04]}  Na6 {[%clk 0:01:43]} 50. Ba3 {[%clk 0:01:04]}  Nb8 {[%clk 0:01:44]} 51. Be8 {[%clk 0:01:02]}  Bd4 {[%clk 0:01:40]} 52. Bxd6+ {[%clk 0:00:56]}  Kxd6 {[%clk 0:01:40]} 53. Kxd4 {[%clk 0:00:57]}  Na6 {[%clk 0:01:41]} 54. Ke4 {[%clk 0:00:56]}  Ke7 {[%clk 0:01:42]} 55. Bb5 {[%clk 0:00:54]}  Nc5+ {[%clk 0:01:37]} 56. Kf5 {[%clk 0:00:55]}  Nd3 {[%clk 0:01:38]} 57. Kxg5 {[%clk 0:00:55]}  Kd6 {[%clk 0:01:36]} 58. Kf5 {[%clk 0:00:55]} 1-0


[Site "https://www.chess.com"]

[Event "Titled Tuesday Blitz December 13 Early 2022"]
[White "Budrewicz, Krzysztof"]
[Black "Matveeva, Olga"]
[WhiteFideId "1127950"]
[BlackFideId "24107018"]
[WhiteElo "2188"]
[BlackElo "2056"]
[Result "1/2-1/2"]
[Round "01"]
[TimeControl "180+1"]
[Date "2022.12.14"]
[WhiteClock "0:00:23"]
[BlackClock "0:00:14"]

1. d4 {[%clk 0:02:59]}  Nf6 {[%clk 0:02:59]} 2. c4 {[%clk 0:02:58]}  e6 {[%clk 0:02:59]} 3. Nf3 {[%clk 0:02:56]}  d5 {[%clk 0:02:58]} 4. Nc3 {[%clk 0:02:56]}  Be7 {[%clk 0:02:57]} 5. Bf4 {[%clk 0:02:56]}  O-O {[%clk 0:02:51]} 6. e3 {[%clk 0:02:56]}  Nbd7 {[%clk 0:02:49]} 7. Rc1 {[%clk 0:02:48]}  c5 {[%clk 0:02:46]} 8. cxd5 {[%clk 0:02:48]}  Nxd5 {[%clk 0:02:36]} 9. Nxd5 {[%clk 0:02:48]}  exd5 {[%clk 0:02:35]} 10. dxc5 {[%clk 0:02:48]}  Nxc5 {[%clk 0:02:36]} 11. Be2 {[%clk 0:02:46]}  Be6 {[%clk 0:02:14]} 12. O-O {[%clk 0:02:45]}  Rc8 {[%clk 0:02:13]} 13. Nd4 {[%clk 0:02:43]}  Qb6 {[%clk 0:02:09]} 14. b3 {[%clk 0:02:38]}  Rfd8 {[%clk 0:02:07]} 15. h3 {[%clk 0:02:32]}  Bf6 {[%clk 0:02:05]} 16. Bf3 {[%clk 0:02:12]}  Ne4 {[%clk 0:01:58]} 17. Nxe6 {[%clk 0:02:03]}  Qxe6 {[%clk 0:01:55]} 18. Rxc8 {[%clk 0:02:02]}  Rxc8 {[%clk 0:01:55]} 19. Qd3 {[%clk 0:02:00]}  Rc3 {[%clk 0:01:41]} 20. Qb5 {[%clk 0:02:00]}  Qc6 {[%clk 0:01:39]} 21. Qa5 {[%clk 0:01:52]}  a6 {[%clk 0:01:32]} 22. Kh2 {[%clk 0:01:41]}  g6 {[%clk 0:01:31]} 23. Rd1 {[%clk 0:01:32]}  Rc5 {[%clk 0:01:26]} 24. Qe1 {[%clk 0:01:32]}  Rc2 {[%clk 0:01:14]} 25. Bxe4 {[%clk 0:01:30]}  dxe4 {[%clk 0:01:14]} 26. Rd2 {[%clk 0:01:29]}  Qc3 {[%clk 0:01:07]} 27. Rd1 {[%clk 0:01:18]}  Qxe1 {[%clk 0:01:05]} 28. Rxe1 {[%clk 0:01:18]}  Rxf2 {[%clk 0:01:02]} 29. Rc1 {[%clk 0:01:13]}  Kg7 {[%clk 0:00:51]} 30. Rc7 {[%clk 0:01:11]}  b5 {[%clk 0:00:41]} 31. a4 {[%clk 0:01:10]}  Rb2 {[%clk 0:00:33]} 32. Rc6 {[%clk 0:00:53]}  Rxb3 {[%clk 0:00:31]} 33. Rxa6 {[%clk 0:00:53]}  bxa4 {[%clk 0:00:30]} 34. Rxa4 {[%clk 0:00:52]}  g5 {[%clk 0:00:30]} 35. Bc7 {[%clk 0:00:43]}  Rxe3 {[%clk 0:00:30]} 36. Kg1 {[%clk 0:00:42]}  Re2 {[%clk 0:00:30]} 37. Kf1 {[%clk 0:00:42]}  Rc2 {[%clk 0:00:26]} 38. Bb6 {[%clk 0:00:42]}  e3 {[%clk 0:00:20]} 39. Bxe3 {[%clk 0:00:41]}  Be5 {[%clk 0:00:20]} 40. Bxg5 {[%clk 0:00:37]}  Kg6 {[%clk 0:00:20]} 41. Be3 {[%clk 0:00:37]}  h6 {[%clk 0:00:19]} 42. Re4 {[%clk 0:00:34]}  f6 {[%clk 0:00:19]} 43. Ra4 {[%clk 0:00:34]}  h5 {[%clk 0:00:18]} 44. Bf2 {[%clk 0:00:33]}  Rb2 {[%clk 0:00:17]} 45. Re4 {[%clk 0:00:27]}  Rc2 {[%clk 0:00:16]} 46. Re1 {[%clk 0:00:27]}  Rb2 {[%clk 0:00:16]} 47. Rc1 {[%clk 0:00:26]}  Ra2 {[%clk 0:00:16]} 48. Rd1 {[%clk 0:00:27]}  Rb2 {[%clk 0:00:16]} 49. Re1 {[%clk 0:00:26]}  Ra2 {[%clk 0:00:16]} 50. Re2 {[%clk 0:00:26]}  Ra1+ {[%clk 0:00:16]} 51. Re1 {[%clk 0:00:27]}  Ra2 {[%clk 0:00:16]} 52. Kg1 {[%clk 0:00:27]}  Rb2 {[%clk 0:00:16]} 53. Be3 {[%clk 0:00:27]}  Ra2 {[%clk 0:00:15]} 54. Rf1 {[%clk 0:00:28]}  Rb2 {[%clk 0:00:15]} 55. Bf4 {[%clk 0:00:28]}  Bxf4 {[%clk 0:00:14]} 56. Rxf4 {[%clk 0:00:29]}  Ra2 {[%clk 0:00:14]} 57. Kh2 {[%clk 0:00:29]}  Kg5 {[%clk 0:00:15]} 58. Rb4 {[%clk 0:00:29]}  h4 {[%clk 0:00:15]} 59. Rg4+ {[%clk 0:00:28]}  Kh5 {[%clk 0:00:15]} 60. Kg1 {[%clk 0:00:29]}  Rb2 {[%clk 0:00:14]} 61. Kf1 {[%clk 0:00:29]}  Ra2 {[%clk 0:00:14]} 62. Rf4 {[%clk 0:00:30]}  Kg5 {[%clk 0:00:14]} 63. Rf3 {[%clk 0:00:30]}  Rb2 {[%clk 0:00:14]} 64. Ra3 {[%clk 0:00:30]}  Rc2 {[%clk 0:00:14]} 65. Ra5+ {[%clk 0:00:30]}  f5 {[%clk 0:00:14]} 66. Ra4 {[%clk 0:00:30]}  Rb2 {[%clk 0:00:14]} 67. Ra8 {[%clk 0:00:30]}  Rc2 {[%clk 0:00:14]} 68. Rg8+ {[%clk 0:00:30]}  Kf4 {[%clk 0:00:15]} 69. Kg1 {[%clk 0:00:29]}  Rb2 {[%clk 0:00:14]} 70. Kh2 {[%clk 0:00:30]}  Ra2 {[%clk 0:00:14]} 71. Rh8 {[%clk 0:00:30]}  Kg5 {[%clk 0:00:14]} 72. Rb8 {[%clk 0:00:29]}  Rc2 {[%clk 0:00:13]} 73. Rb3 {[%clk 0:00:29]}  Ra2 {[%clk 0:00:13]} 74. Rf3 {[%clk 0:00:28]}  Rb2 {[%clk 0:00:12]} 75. Kg1 {[%clk 0:00:28]}  Ra2 {[%clk 0:00:13]} 76. Rc3 {[%clk 0:00:27]}  Rb2 {[%clk 0:00:13]} 77. Kf1 {[%clk 0:00:25]}  Ra2 {[%clk 0:00:13]} 78. Rc8 {[%clk 0:00:24]}  Rb2 {[%clk 0:00:13]} 79. Rg8+ {[%clk 0:00:24]}  Kf4 {[%clk 0:00:13]} 80. Ke1 {[%clk 0:00:25]}  Ra2 {[%clk 0:00:13]} 81. Kf1 {[%clk 0:00:22]}  Rb2 {[%clk 0:00:13]} 82. Kg1 {[%clk 0:00:22]}  Ra2 {[%clk 0:00:13]} 83. Kh2 {[%clk 0:00:23]}  Rb2 {[%clk 0:00:14]} 84. Rh8 {[%clk 0:00:23]} 1/2-1/2


[Site "https://www.chess.com"]

[Event "Titled Tuesday Blitz December 13 Early 2022"]
[White "Colas, Joshua"]
[Black "Santeramo, Alessia Carmen"]
[WhiteFideId "2044447"]
[BlackFideId "850810"]
[WhiteElo "2347"]
[BlackElo "2062"]
[Result "1-0"]
[Round "01"]
[TimeControl "180+1"]
[Date "2022.12.14"]
[WhiteClock "0:01:18"]
[BlackClock "0:01:24"]

1. Nf3 {[%clk 0:02:53]}  Nf6 {[%clk 0:02:56]} 2. c4 {[%clk 0:02:53]}  d5 {[%clk 0:02:56]} 3. cxd5 {[%clk 0:02:53]}  Nxd5 {[%clk 0:02:55]} 4. b3 {[%clk 0:02:53]}  c5 {[%clk 0:02:55]} 5. Bb2 {[%clk 0:02:53]}  Nc6 {[%clk 0:02:55]} 6. e3 {[%clk 0:02:53]}  Bf5 {[%clk 0:02:53]} 7. a3 {[%clk 0:02:52]}  e6 {[%clk 0:02:47]} 8. Be2 {[%clk 0:02:47]}  Be7 {[%clk 0:02:38]} 9. d3 {[%clk 0:02:38]}  Nf6 {[%clk 0:02:32]} 10. O-O {[%clk 0:02:30]}  O-O {[%clk 0:02:32]} 11. Nc3 {[%clk 0:02:30]}  a6 {[%clk 0:02:29]} 12. Nh4 {[%clk 0:02:30]}  Bg6 {[%clk 0:02:26]} 13. Nxg6 {[%clk 0:02:26]}  hxg6 {[%clk 0:02:27]} 14. Bf3 {[%clk 0:02:25]}  Ne5 {[%clk 0:02:26]} 15. Bxb7 {[%clk 0:02:07]}  Rb8 {[%clk 0:02:22]} 16. Bxa6 {[%clk 0:02:07]}  Rb6 {[%clk 0:02:13]} 17. Na4 {[%clk 0:02:01]}  Rd6 {[%clk 0:01:55]} 18. Nxc5 {[%clk 0:01:48]}  Neg4 {[%clk 0:01:48]} 19. h3 {[%clk 0:01:40]}  Rc6 {[%clk 0:01:41]} 20. hxg4 {[%clk 0:01:32]}  Bxc5 {[%clk 0:01:39]} 21. Bc4 {[%clk 0:01:26]}  Rc8 {[%clk 0:01:30]} 22. b4 {[%clk 0:01:25]}  Bd6 {[%clk 0:01:29]} 23. b5 {[%clk 0:01:23]}  Bc7 {[%clk 0:01:29]} 24. a4 {[%clk 0:01:23]}  Qd6 {[%clk 0:01:29]} 25. g3 {[%clk 0:01:22]}  Nd7 {[%clk 0:01:24]} 26. a5 {[%clk 0:01:18]}  Qe5 {[%clk 0:01:24]} 27. Bxe5 {[%clk 0:01:18]} 1-0


[Site "https://www.chess.com"]

[Event "Titled Tuesday Blitz December 13 Early 2022"]
[White "Corrales Jimenez, Fidel"]
[Black "Grunberg, Mihai-Lucian"]
[WhiteFideId "3506690"]
[BlackFideId "1204149"]
[WhiteElo "2541"]
[BlackElo "2363"]
[Result "0-1"]
[Round "01"]
[TimeControl "180+1"]
[Date "2022.12.14"]
[WhiteClock "0:00:02"]
[BlackClock "0:00:17"]

1. d4 {[%clk 0:02:57]}  f5 {[%clk 0:03:00]} 2. Nc3 {[%clk 0:02:56]}  d5 {[%clk 0:02:55]} 3. Bf4 {[%clk 0:02:53]}  Nf6 {[%clk 0:02:55]} 4. g4 {[%clk 0:02:51]}  e6 {[%clk 0:02:51]} 5. gxf5 {[%clk 0:02:45]}  exf5 {[%clk 0:02:50]} 6. a3 {[%clk 0:02:44]}  Bd6 {[%clk 0:02:48]} 7. Bxd6 {[%clk 0:02:39]}  Qxd6 {[%clk 0:02:48]} 8. Nf3 {[%clk 0:02:35]}  O-O {[%clk 0:02:47]} 9. Rg1 {[%clk 0:02:34]}  Be6 {[%clk 0:02:44]} 10. Ne5 {[%clk 0:02:34]}  Nbd7 {[%clk 0:02:41]} 11. f4 {[%clk 0:02:31]}  Ne4 {[%clk 0:02:39]} 12. Qd3 {[%clk 0:02:24]}  c5 {[%clk 0:02:38]} 13. e3 {[%clk 0:02:17]}  cxd4 {[%clk 0:02:32]} 14. exd4 {[%clk 0:02:15]}  Rac8 {[%clk 0:02:31]} 15. Nd1 {[%clk 0:01:54]}  Nxe5 {[%clk 0:02:25]} 16. fxe5 {[%clk 0:01:54]}  Qe7 {[%clk 0:02:24]} 17. Bg2 {[%clk 0:00:59]}  Qh4+ {[%clk 0:02:22]} 18. Ke2 {[%clk 0:00:59]}  Qxh2 {[%clk 0:02:16]} 19. c3 {[%clk 0:00:57]}  f4 {[%clk 0:02:11]} 20. Qf3 {[%clk 0:00:47]}  Ng5 {[%clk 0:02:02]} 21. Nf2 {[%clk 0:00:38]}  Nxf3 {[%clk 0:02:00]} 22. Bxf3 {[%clk 0:00:39]}  Qh4 {[%clk 0:01:53]} 23. Rh1 {[%clk 0:00:37]}  Qe7 {[%clk 0:01:53]} 24. Rag1 {[%clk 0:00:33]}  Rcd8 {[%clk 0:01:52]} 25. Nd3 {[%clk 0:00:33]}  g6 {[%clk 0:01:40]} 26. Rh6 {[%clk 0:00:32]}  Kg7 {[%clk 0:01:38]} 27. Rgh1 {[%clk 0:00:31]}  Bg8 {[%clk 0:01:37]} 28. R6h4 {[%clk 0:00:28]}  g5 {[%clk 0:01:25]} 29. Rh5 {[%clk 0:00:23]}  Rf7 {[%clk 0:01:08]} 30. Nf2 {[%clk 0:00:22]}  Kh8 {[%clk 0:01:03]} 31. Ng4 {[%clk 0:00:22]}  Rg7 {[%clk 0:00:55]} 32. Kf2 {[%clk 0:00:18]}  Rf8 {[%clk 0:00:53]} 33. Rh6 {[%clk 0:00:18]}  Qd7 {[%clk 0:00:45]} 34. Nf6 {[%clk 0:00:18]}  Rxf6 {[%clk 0:00:44]} 35. exf6 {[%clk 0:00:19]}  Rf7 {[%clk 0:00:43]} 36. Bh5 {[%clk 0:00:19]}  Qf5 {[%clk 0:00:37]} 37. Bxf7 {[%clk 0:00:19]}  Bxf7 {[%clk 0:00:37]} 38. Re1 {[%clk 0:00:12]}  Bg6 {[%clk 0:00:29]} 39. Re7 {[%clk 0:00:05]}  g4 {[%clk 0:00:21]} 40. Rxb7 {[%clk 0:00:04]}  Qxf6 {[%clk 0:00:20]} 41. Rbxh7+ {[%clk 0:00:04]}  Kg8 {[%clk 0:00:19]} 42. Rxa7 {[%clk 0:00:04]}  g3+ {[%clk 0:00:19]} 43. Kg1 {[%clk 0:00:03]}  f3 {[%clk 0:00:18]} 44. Rh3 {[%clk 0:00:01]}  f2+ {[%clk 0:00:18]} 45. Kg2 {[%clk 0:00:01]}  f1=Q+ {[%clk 0:00:17]} 46. Kxg3 {[%clk 0:00:02]}  Q6f3+ {[%clk 0:00:17]} 0-1


[Site "https://www.chess.com"]

[Event "Titled Tuesday Blitz December 13 Early 2022"]
[White "Demin, Vladimir"]
[Black "Kostiukov, Alexandr"]
[WhiteFideId "4167457"]
[BlackFideId "14108100"]
[WhiteElo "2590"]
[BlackElo "2202"]
[Result "1/2-1/2"]
[Round "01"]
[TimeControl "180+1"]
[Date "2022.12.14"]
[WhiteClock "0:00:57"]
[BlackClock "0:01:32"]

1. e4 {[%clk 0:02:54]}  c5 {[%clk 0:02:59]} 2. Nf3 {[%clk 0:02:42]}  g6 {[%clk 0:02:58]} 3. c3 {[%clk 0:02:42]}  Bg7 {[%clk 0:02:57]} 4. d4 {[%clk 0:02:41]}  cxd4 {[%clk 0:02:58]} 5. cxd4 {[%clk 0:02:41]}  d5 {[%clk 0:02:58]} 6. exd5 {[%clk 0:02:41]}  Nf6 {[%clk 0:02:58]} 7. Nc3 {[%clk 0:02:39]}  Nxd5 {[%clk 0:02:57]} 8. Bc4 {[%clk 0:02:39]}  Nb6 {[%clk 0:02:56]} 9. Bb3 {[%clk 0:02:37]}  Nc6 {[%clk 0:02:53]} 10. Be3 {[%clk 0:02:33]}  Na5 {[%clk 0:02:53]} 11. O-O {[%clk 0:02:31]}  Nxb3 {[%clk 0:02:52]} 12. Qxb3 {[%clk 0:02:30]}  Be6 {[%clk 0:02:52]} 13. Qd1 {[%clk 0:02:26]}  O-O {[%clk 0:02:50]} 14. Ne5 {[%clk 0:02:17]}  Nc4 {[%clk 0:02:48]} 15. Nxc4 {[%clk 0:02:17]}  Bxc4 {[%clk 0:02:48]} 16. Re1 {[%clk 0:02:18]}  Qd7 {[%clk 0:02:47]} 17. Qd2 {[%clk 0:02:17]}  Rfd8 {[%clk 0:02:42]} 18. Rad1 {[%clk 0:02:17]}  Rac8 {[%clk 0:02:36]} 19. Bh6 {[%clk 0:02:15]}  Qxd4 {[%clk 0:02:22]} 20. Qxd4 {[%clk 0:02:01]}  Bxd4 {[%clk 0:02:16]} 21. Rc1 {[%clk 0:01:40]}  Bf6 {[%clk 0:02:05]} 22. a3 {[%clk 0:01:34]}  Bb3 {[%clk 0:02:02]} 23. Be3 {[%clk 0:01:33]}  a6 {[%clk 0:01:59]} 24. g3 {[%clk 0:01:32]}  Bd4 {[%clk 0:01:55]} 25. Bxd4 {[%clk 0:01:30]}  Rxd4 {[%clk 0:01:54]} 26. Rxe7 {[%clk 0:01:31]}  b5 {[%clk 0:01:48]} 27. Ra7 {[%clk 0:01:29]}  Rc6 {[%clk 0:01:39]} 28. Re1 {[%clk 0:01:19]}  Rd2 {[%clk 0:01:37]} 29. Re2 {[%clk 0:01:04]}  Rxe2 {[%clk 0:01:33]} 30. Nxe2 {[%clk 0:01:05]}  Rc2 {[%clk 0:01:32]} 31. Nd4 {[%clk 0:01:01]}  Rxb2 {[%clk 0:01:33]} 32. Nxb3 {[%clk 0:01:00]}  Rxb3 {[%clk 0:01:33]} 33. Rxa6 {[%clk 0:01:01]}  b4 {[%clk 0:01:32]} 34. axb4 {[%clk 0:01:00]}  Rxb4 {[%clk 0:01:32]} 35. Kg2 {[%clk 0:01:00]}  Kg7 {[%clk 0:01:32]} 36. h4 {[%clk 0:00:59]}  h5 {[%clk 0:01:32]} 37. Ra7 {[%clk 0:00:59]}  Rb6 {[%clk 0:01:32]} 38. Ra5 {[%clk 0:00:59]}  Rc6 {[%clk 0:01:32]} 39. Ra7 {[%clk 0:00:57]}  Rc2 {[%clk 0:01:32]} 40. Ra6 {[%clk 0:00:57]}  Rb2 {[%clk 0:01:32]} 1/2-1/2


[Site "https://www.chess.com"]